fUST/lending_fUST_20250826
["ID","MTS","AMOUNT","RATE_DAILY","PERIOD"]
[381459254,1756221038555,-1014.35649689,0.00029245,2]
[381459255,1756221038565,-1014.35649689,0.00029245,2]
[381459256,1756221038574,-385.17594164,0.00029245,2]
[381459257,1756221038583,-1014.35649689,0.00029245,2]
[381459258,1756221038593,-1014.35649689,0.00029245,2]
[381459260,1756221038602,-1014.35649689,0.00029245,2]
[381459261,1756221038612,-1014.35649689,0.00029245,2]
[381459262,1756221038621,-1014.35649689,0.00029245,2]
[381459263,1756221038631,-1014.35649689,0.00029245,2]
[381459264,1756221038641,-1014.35649689,0.00029245,2]
[381459265,1756221038651,-1014.35649689,0.00029245,2]
[381459266,1756221038660,-1014.35649689,0.00029245,2]
[381459267,1756221038669,-1014.35649689,0.00029245,2]
[381459268,1756221038680,-1014.35649689,0.00029245,2]
[381459269,1756221038691,-1014.35649689,0.00029245,2]
[381459270,1756221038700,-1065.07432174,0.00029245,2]
[381459271,1756221038710,-1065.07432174,0.00029245,2]
[381459272,1756221038719,-1065.07432174,0.00029245,2]
[381459273,1756221038728,-1065.07432174,0.00029245,2]
[381459274,1756221038737,-1065.07432174,0.00029245,2]
[381459275,1756221038746,-1065.07432174,0.00029245,2]
[381459276,1756221038756,-1065.07432174,0.00029245,2]
[381459277,1756221038766,-1065.07432174,0.00029245,2]
[381459278,1756221038775,-1258.15183425,0.00029245,2]
[381459279,1756221038784,-1258.15183425,0.00029245,2]
[381459280,1756221038794,-77436.7637868,0.00029246,2]
[381459281,1756221038803,-10181.6497183,0.00029246,2]
[381459282,1756221038813,-151.48,0.00029258,15]
[381459283,1756221038822,-421.83324508,0.00029273,5]
[381459284,1756221038832,-500.0,0.00029273,5]
[381459285,1756221038841,-506.45137393,0.00029273,5]
[381459286,1756221038850,-500.0,0.00029273,5]
[381459287,1756221038860,-500.0,0.00029273,2]
[381459288,1756221038869,-633.86486829,0.00029273,5]
[381459289,1756221038879,-500.0,0.00029273,5]
[381459290,1756221038889,-505.41813531,0.00029273,5]
[381459291,1756221038898,-500.0,0.00029273,5]
[381459292,1756221038908,-393.94895525,0.00029273,5]
[381459293,1756221038918,-500.0,0.00029273,5]
[381459294,1756221038929,-500.0,0.00029273,5]
[381459295,1756221038938,-504.93391544,0.00029273,5]
[381459296,1756221038948,-500.0,0.00029273,5]
[381459297,1756221038957,-500.0,0.00029273,5]
[381459298,1756221038967,-500.0,0.00029273,5]
[381459299,1756221038976,-385.0,0.00029609,7]
[381459300,1756221038986,-385.0,0.00029613,2]
[381459301,1756221038996,-5028.34018031,0.00029635,2]
[381459302,1756221039006,-325.0,0.00029667,7]
[381459303,1756221039015,-500.0,0.00029821,5]
[381459304,1756221039025,-1001.65704101,0.00029821,5]
[381459305,1756221039035,-577.64786504,0.00029821,2]
[381459306,1756221039045,-737.81261062,0.00029821,5]
[381459307,1756221039054,-1000.0,0.00029821,5]
[381459308,1756221039064,-504.17463862,0.00029821,5]
[381459309,1756221039073,-325.0,0.00029862,2]
[381459310,1756221039082,-414.67,0.0002988,2]
[381459311,1756221039092,-10181.6497183,0.0002988,2]
[381459312,1756221039102,-821.78395175,0.00029881,2]
[381459313,1756221039112,-19485.92368891,0.0002989,2]
[381459314,1756221039122,-10181.6497183,0.00029952,2]
[381459315,1756221039131,-181.97,0.0002996,120]
[381459316,1756221039141,-10181.6497183,0.0002996,2]
[381459317,1756221039152,-10181.6497183,0.0002996,2]
[381459318,1756221039167,-77436.7637868,0.00029963,2]
[381459319,1756221039177,-10181.6497183,0.00029968,2]
[381459320,1756221039187,-220.25,0.00029969,3]
[381459321,1756221039198,-660.78,0.00029969,3]
[381459322,1756221039207,-1762.01,0.0002997,3]
[381459323,1756221039217,-881.01,0.0002997,3]
[381459324,1756221039227,-150.5,0.0002997,120]
[381459325,1756221039239,-440.5,0.0002997,3]
[381459326,1756221039251,-77436.7637868,0.0002997,2]
[381459327,1756221039261,-20363.2994366,0.0002997,2]
[381459328,1756221039270,-500.0,0.00029972,2]
[381459329,1756221039279,-500.0,0.00029972,2]
[381459330,1756221039289,-500.0,0.00029972,2]
[381459331,1756221039298,-500.0,0.00029972,2]
[381459332,1756221039307,-500.0,0.00029972,2]
[381459333,1756221039317,-542.03860961,0.00029972,2]
[381459334,1756221039326,-254.32786483,0.00029972,2]
[381459335,1756221039335,-151.70994571,0.00029972,2]
[381459336,1756221039344,-500.0,0.00029973,5]
[381459337,1756221039353,-626.89555106,0.00029973,2]
[381459338,1756221039363,-500.0,0.00029973,5]
[381459339,1756221039372,-501.43196376,0.00029973,5]
[381459340,1756221039382,-500.0,0.00029973,5]
[381459341,1756221039391,-279.39570652,0.00029973,5]
[381459342,1756221039401,-500.0,0.00029973,5]
[381459343,1756221039410,-501.13431536,0.00029973,5]
[381459344,1756221039419,-529.59348212,0.00029973,5]
[381459345,1756221039429,-500.0,0.00029973,5]
[381459346,1756221039641,-500.0,0.00029973,5]
[381459347,1756221039653,-500.0,0.00029973,5]
[381459348,1756221039664,-500.0,0.00029973,5]
[381459349,1756221039674,-500.0,0.00029973,5]
[381459350,1756221039686,-500.0,0.00029973,5]
[381459351,1756221039696,-500.0,0.00029973,5]
[381459352,1756221039705,-500.0,0.00029973,5]
[381459353,1756221039715,-500.0,0.00029973,5]
[381459354,1756221039725,-500.60175655,0.00029973,5]
[381459355,1756221039734,-561.41801147,0.00029973,5]
[381459356,1756221039744,-501.10954951,0.00029973,5]
[381459357,1756221039753,-500.0,0.00029973,5]
[381459358,1756221039763,-500.0,0.00029973,5]
[381459359,1756221039772,-500.0,0.00029973,5]
[381459360,1756221039783,-504.4862986,0.00029973,5]
[381459361,1756221039793,-500.0,0.00029973,5]
[381459362,1756221039802,-500.0,0.00029973,5]
[381459363,1756221039812,-202.01391114,0.00029973,5]
[381459364,1756221039822,-500.0,0.00029973,5]
[381459365,1756221039832,-500.0,0.00029973,5]
[381459366,1756221039841,-500.0,0.00029973,5]
[381459367,1756221039851,-500.0,0.00029973,5]
[381459368,1756221039860,-500.0,0.00029973,5]
[381459369,1756221039870,-500.0,0.00029973,5]
[381459370,1756221039880,-186.863,0.00029974,24]
[381459371,1756221039891,-3524.03,0.0002998,3]
[381459372,1756221039901,-150.5,0.0002998,120]
[381459373,1756221039910,-3557.33167193,0.0002998,2]
[381459374,1756221039920,-77436.7637868,0.0002998,2]
[381459375,1756221039934,-10181.6497183,0.0002998,2]
[381459376,1756221039944,-160.0,0.00029981,2]
[381459377,1756221039953,-1918.05617844,0.00029984,15]
[381459378,1756221039964,-6427.32,0.0002999,3]
[381459379,1756221039974,-216.09257821,0.0002999,3]
[381459380,1756221039984,-232.53539143,0.0002999,3]
[381459381,1756221039994,-845.07960918,0.0002999,3]
[381459382,1756221040004,-160.0,0.0002999,3]
[381459383,1756221040014,-160.0,0.0002999,3]
[381459384,1756221040024,-160.0,0.0002999,3]
[381459385,1756221040035,-77436.7637868,0.0002999,2]
[381459386,1756221040045,-20363.2994366,0.0002999,2]
[381459387,1756221040055,-168.204676,0.0002999,7]
[381459388,1756221040065,-151.0,0.0002999,7]
[381459389,1756221040075,-151.0,0.0002999,7]
[381459390,1756221040085,-151.0,0.0002999,7]
[381459391,1756221040096,-159.499912,0.0002999,7]
[381459393,1756221040106,-151.0,0.0002999,7]
[381459395,1756221040116,-151.0,0.0002999,7]
[381459397,1756221040126,-159.535,0.00029997,2]
[381459399,1756221040136,-341.0,0.00029998,2]
[381459401,1756221040146,-2389.42967797,0.0003,3]
[381459403,1756221040160,-84341.49,0.0003,7]
[381459405,1756221040170,-780.37630257,0.0003,7]
[381459407,1756221040183,-216.09257821,0.0003,7]
[381459409,1756221040194,-232.53539143,0.0003,7]
[381459411,1756221040204,-845.07960918,0.0003,7]
[381459412,1756221040214,-160.0,0.0003,7]
[381459414,1756221040223,-160.0,0.0003,7]
[381459415,1756221040235,-160.0,0.00030009,2]
[381459417,1756221040246,-341.0,0.00030034,7]
[381459418,1756221040255,-385.0,0.00030072,2]
[381459419,1756221040265,-341.0,0.0003008,7]
[381459420,1756221040275,-5028.34018031,0.00030123,2]
[381459421,1756221040286,-764.26336194,0.00030259,13]
[381459422,1756221040296,-10181.6497183,0.00030311,2]
[381459423,1756221040306,-290.1721228,0.0003034,120]
[381459424,1756221040316,-1000.0,0.0003034,30]
[381459426,1756221040327,-215.812969,0.0003034,2]
[381459428,1756221040337,-182.0,0.00030357,120]
[381459429,1756221040347,-1500.0,0.00030368,5]
[381459430,1756221040358,-1000.0,0.00030521,5]
[381459431,1756221040368,-502.24081505,0.00030521,5]
[381459432,1756221040377,-500.0,0.00030521,5]
[381459433,1756221040388,-501.49178648,0.00030521,5]
[381459434,1756221040398,-1000.0,0.00030521,5]
[381459435,1756221040408,-500.0,0.00030521,5]
[381459436,1756221040419,-1008.09565892,0.00030521,5]
[381459437,1756221040431,-500.0,0.00030521,5]
[381459439,1756221040441,-500.0,0.00030521,5]
[381459440,1756221040451,-1000.0,0.00030521,5]
[381459442,1756221040460,-500.0,0.00030521,5]
[381459443,1756221040471,-500.0,0.00030521,5]
[381459444,1756221040480,-1000.0,0.00030521,5]
[381459445,1756221040490,-500.0,0.00030521,5]
[381459446,1756221040499,-500.0,0.00030521,5]
[381459447,1756221040508,-610.60501173,0.00030521,5]
[381459448,1756221040518,-197.28024684,0.00030521,5]
[381459450,1756221040527,-500.0,0.00030521,5]
[381459451,1756221040536,-1000.0,0.00030521,5]
[381459452,1756221040545,-500.0,0.00030521,5]
[381459453,1756221040555,-1000.0,0.00030521,5]
[381459454,1756221040564,-260.0,0.00030557,2]
[381459455,1756221040573,-500.0,0.00030573,5]
[381459456,1756221040582,-501.88207925,0.00030573,5]
[381459457,1756221040591,-500.0,0.000306,2]
[381459458,1756221040600,-501.33599703,0.000306,5]
[381459459,1756221040611,-500.0,0.000306,5]
[381459460,1756221040620,-500.0,0.000306,2]
[381459461,1756221040629,-341.0,0.00030601,2]
[381459462,1756221040639,-5028.34018031,0.00030612,2]
[381459463,1756221040648,-10181.6497183,0.00030726,2]
[381459464,1756221040657,-151.0,0.00030736,2]
[381459465,1756221040667,-151.0,0.00030736,2]
[381459466,1756221040678,-151.0,0.00030736,2]
[381459467,1756221040687,-151.0,0.00030736,2]
[381459468,1756221040697,-151.0,0.00030736,2]
[381459469,1756221040706,-151.0,0.00030736,2]
[381459470,1756221040716,-151.0,0.00030736,2]
[381459471,1756221040725,-151.0,0.00030736,2]
[381459472,1756221040734,-151.0,0.00030736,2]
[381459473,1756221040744,-151.0,0.00030736,2]
[381459474,1756221040753,-151.0,0.00030736,2]
[381459475,1756221040762,-151.0,0.00030736,2]
[381459476,1756221040771,-151.0,0.00030736,2]
[381459477,1756221040781,-151.0,0.00030736,2]
[381459478,1756221040790,-259.7168888,0.00030736,2]
[381459479,1756221040800,-500.0,0.00030736,2]
[381459480,1756221040809,-500.0,0.00030736,2]
[381459481,1756221040819,-500.0,0.00030736,2]
[381459482,1756221040828,-500.0,0.00030736,2]
[381459483,1756221040837,-500.0,0.00030736,2]
[381459484,1756221040846,-500.0,0.00030736,2]
[381459485,1756221040855,-500.0,0.00030736,2]
[381459486,1756221040864,-500.0,0.00030736,2]
[381459487,1756221040873,-500.0,0.00030736,2]
[381459488,1756221040883,-500.0,0.00030736,2]
[381459489,1756221040892,-500.0,0.00030736,2]
[381459490,1756221040901,-500.0,0.00030736,2]
[381459491,1756221040911,-151.0,0.00030736,2]
[381459492,1756221040920,-151.0,0.00030736,2]
[381459493,1756221040931,-151.0,0.00030736,2]
[381459494,1756221040941,-151.0,0.00030736,2]
[381459495,1756221040950,-151.0,0.00030736,2]
[381459496,1756221040959,-151.0,0.00030736,2]
[381459497,1756221040969,-151.0,0.00030736,2]
[381459498,1756221040978,-151.0,0.00030736,2]
[381459499,1756221040987,-151.0,0.00030736,2]
[381459500,1756221040996,-151.0,0.00030736,2]
[381459501,1756221041006,-151.0,0.00030736,2]
[381459502,1756221041015,-152.256998,0.00030736,2]
[381459503,1756221041024,-151.0,0.00030736,2]
[381459504,1756221041034,-151.0,0.00030736,2]
[381459505,1756221041043,-151.0,0.00030736,2]
[381459506,1756221041053,-300.0,0.00030736,2]
[381459507,1756221041062,-151.0,0.00030736,2]
[381459508,1756221041071,-201.93286099,0.00030736,2]
[381459509,1756221041081,-151.0,0.00030736,2]
[381459510,1756221041091,-151.0,0.00030736,2]
[381459511,1756221041100,-151.0,0.00030736,2]
[381459512,1756221041109,-300.0,0.00030736,2]
[381459513,1756221041119,-151.0,0.00030736,2]
[381459514,1756221041128,-151.0,0.00030736,2]
[381459515,1756221041137,-151.0,0.00030736,2]
[381459516,1756221041146,-300.0,0.00030736,2]
[381459517,1756221041157,-300.0,0.00030736,2]
[381459518,1756221041167,-151.0,0.00030736,2]
[381459519,1756221041177,-151.0,0.00030736,2]
[381459520,1756221041187,-151.0,0.00030736,2]
[381459521,1756221041198,-151.0,0.00030736,2]
[381459522,1756221041207,-151.0,0.00030736,2]
[381459523,1756221041217,-300.0,0.00030736,2]
[381459524,1756221041227,-300.0,0.00030736,2]
[381459525,1756221041237,-151.0,0.00030736,2]
[381459526,1756221041247,-151.0,0.00030736,2]
[381459527,1756221041256,-151.0,0.00030736,2]
[381459528,1756221041265,-300.0,0.00030736,2]
[381459529,1756221041275,-151.0,0.00030736,2]
[381459530,1756221041284,-151.0,0.00030736,2]
[381459531,1756221041294,-300.0,0.00030736,2]
[381459532,1756221041303,-300.0,0.00030736,2]
[381459533,1756221041313,-151.0,0.00030736,2]
[381459534,1756221041322,-270.18720551,0.00030736,2]
[381459535,1756221041331,-151.0,0.00030736,2]
[381459536,1756221041340,-300.0,0.00030736,2]
[381459537,1756221041350,-300.0,0.00030736,2]
[381459538,1756221041359,-220.81030478,0.00030736,2]
[381459539,1756221041368,-151.0,0.00030736,2]
[381459540,1756221041378,-300.0,0.00030736,2]
[381459541,1756221041388,-151.0,0.00030736,2]
[381459542,1756221041397,-300.0,0.00030736,2]
[381459543,1756221041406,-300.0,0.00030736,2]
[381459544,1756221041415,-151.0,0.00030736,2]
[381459545,1756221041424,-300.0,0.00030736,2]
[381459546,1756221041435,-300.0,0.00030736,2]
[381459547,1756221041444,-151.44688871,0.00030736,2]
[381459548,1756221041453,-300.0,0.00030736,2]
[381459549,1756221041463,-434.55294372,0.00030736,2]
[381459550,1756221041472,-222.40877249,0.00030736,2]
[381459551,1756221041481,-250.0,0.00030736,2]
[381459552,1756221041491,-250.0,0.00030736,2]
[381459553,1756221041500,-1000.0,0.00030736,2]
[381459554,1756221041509,-2524.82941417,0.00030736,2]
[381459555,1756221041519,-250.0,0.00030736,2]
[381459556,1756221041528,-151.0,0.00030736,2]
[381459557,1756221041537,-1000.0,0.00030736,2]
[381459558,1756221041546,-156.587,0.00030736,2]
[381459559,1756221041555,-250.0,0.00030736,2]
[381459560,1756221041564,-1000.0,0.00030736,2]
[381459561,1756221041574,-198.79556667,0.00030736,2]
[381459562,1756221041583,-1000.0,0.00030736,2]
[381459563,1756221041592,-1000.0,0.00030736,2]
[381459564,1756221041601,-1000.0,0.00030736,2]
[381459565,1756221041611,-341.0,0.00030768,2]
[381459566,1756221041620,-2618.2481025,0.00030791,2]
[381459567,1756221041630,-341.0,0.00030797,2]
[381459568,1756221041639,-2715.12328229,0.00030846,2]
[381459569,1756221041649,-341.0,0.00030848,2]
[381459570,1756221041658,-168.0,0.00030888,2]
[381459571,1756221041668,-19485.92368889,0.00030894,2]
[381459572,1756221041678,-341.0,0.00030895,7]
[381459573,1756221041687,-2815.58284374,0.00030901,2]
[381459574,1756221041696,-2000.0,0.00030916,5]
[381459575,1756221041705,-2919.75940895,0.00030956,2]
[381459576,1756221041714,-341.0,0.00030971,7]
[381459577,1756221041723,-168.0,0.00030984,7]
[381459578,1756221041733,-10181.6497183,0.00031002,2]
[381459579,1756221041743,-3027.79050709,0.00031011,2]
[381459580,1756221041752,-151.0,0.00031068,7]
[381459581,1756221041762,-151.0,0.00031068,7]
[381459582,1756221041772,-792.58905785,0.00031068,5]
[381459583,1756221041782,-500.0,0.00031068,5]
[381459584,1756221041792,-1502.96478376,0.00031068,5]
[381459585,1756221041802,-1500.0,0.00031068,5]
[381459586,1756221041811,-1000.0,0.00031068,5]
[381459587,1756221041821,-500.0,0.00031068,5]
[381459588,1756221041831,-151.0,0.000311,14]
[381459589,1756221041840,-5028.34018031,0.000311,2]
[381459590,1756221041849,-151.0,0.000311,7]
[381459591,1756221041859,-151.0,0.000311,7]
[381459592,1756221041868,-151.0,0.000311,7]
[381459593,1756221041878,-360.0,0.00031105,2]
[381459594,1756221041887,-174.22317389,0.00031118,2]
[381459595,1756221041896,-160.0,0.00031123,2]
[381459596,1756221041906,-20363.2994366,0.00031127,2]
[381459597,1756221041915,-151.0,0.00031127,7]
[381459598,1756221041924,-151.0,0.00031127,7]
[381459599,1756221041935,-151.0,0.00031127,7]
[381459600,1756221041944,-165.229524,0.00031127,7]
[381459601,1756221041954,-151.0,0.00031127,7]
[381459602,1756221041963,-151.0,0.00031127,7]
[381459603,1756221041972,-151.0,0.00031127,7]
[381459604,1756221041982,-151.0,0.00031127,7]
[381459605,1756221041991,-213.289384,0.00031127,7]
[381459606,1756221042001,-151.0,0.00031127,7]
[381459607,1756221042010,-151.0,0.00031127,7]
[381459608,1756221042019,-151.0,0.00031127,7]
[381459609,1756221042029,-151.0,0.00031127,7]
[381459610,1756221042038,-151.0,0.00031127,7]
[381459611,1756221042047,-151.0,0.00031127,7]
[381459612,1756221042057,-287.861439,0.00031127,7]
[381459613,1756221042066,-151.785022,0.00031127,7]
[381459614,1756221042075,-151.0,0.00031127,7]
[381459615,1756221042084,-151.0,0.00031127,7]
[381459616,1756221042094,-151.0,0.00031127,7]
[381459617,1756221042103,-151.0,0.00031127,7]
[381459618,1756221042113,-151.0,0.00031127,7]
[381459619,1756221042122,-151.0,0.00031127,7]
[381459620,1756221042132,-163.052242,0.00031127,7]
[381459621,1756221042142,-151.0,0.00031127,7]
[381459622,1756221042152,-163.052242,0.00031127,7]
[381459623,1756221042170,-151.0,0.00031127,7]
[381459624,1756221042180,-151.0,0.00031127,7]
[381459625,1756221042189,-163.052242,0.00031127,7]
[381459626,1756221042198,-163.052242,0.00031127,7]
[381459627,1756221042210,-183.374055,0.00031127,7]
[381459628,1756221042220,-151.0,0.00031127,7]
[381459629,1756221042230,-151.0,0.00031127,7]
[381459630,1756221042240,-282.813,0.00031127,7]
[381459631,1756221042249,-151.0,0.00031127,7]
[381459632,1756221042259,-158.55,0.00031127,7]
[381459633,1756221042268,-151.0,0.00031127,7]
[381459634,1756221042277,-158.55,0.00031127,7]
[381459635,1756221042287,-158.55,0.00031127,7]
[381459636,1756221042296,-158.55,0.00031127,7]
[381459637,1756221042306,-151.0,0.00031127,7]
[381459638,1756221042315,-151.0,0.00031127,7]
[381459639,1756221042324,-323.995814,0.00031127,7]
[381459640,1756221042334,-151.0,0.00031127,7]
[381459641,1756221042343,-323.995814,0.00031127,7]
[381459642,1756221042352,-151.0,0.00031127,7]
[381459643,1756221042361,-323.995814,0.00031127,7]
[381459644,1756221042371,-323.995814,0.00031127,7]
[381459645,1756221042379,-151.0,0.00031127,7]
[381459646,1756221042389,-151.0,0.00031127,7]
[381459647,1756221042398,-151.0,0.00031127,7]
[381459648,1756221042407,-153.868672,0.00031127,7]
[381459649,1756221042417,-151.0,0.00031127,7]
[381459650,1756221042428,-151.0,0.00031127,7]
[381459651,1756221042441,-151.0,0.00031127,7]
[381459652,1756221042450,-246.446101,0.00031127,7]
[381459653,1756221042460,-151.413158,0.00031127,7]
[381459654,1756221042469,-246.446101,0.00031127,7]
[381459655,1756221042478,-246.446101,0.00031127,7]
[381459656,1756221042487,-246.446101,0.00031127,7]
[381459657,1756221042496,-151.0,0.00031127,7]
[381459658,1756221042506,-151.0,0.00031127,7]
[381459659,1756221042515,-151.0,0.00031127,7]
[381459660,1756221042525,-268.746139,0.00031127,7]
[381459661,1756221042534,-268.746139,0.00031127,7]
[381459662,1756221042544,-268.746139,0.00031127,7]
[381459663,1756221042553,-268.746139,0.00031127,7]
[381459664,1756221042562,-151.0,0.00031127,7]
[381459665,1756221042572,-54994.3998326,0.00031137,2]
[381459666,1756221042582,-24520.8287235,0.00031137,2]
[381459667,1756221042591,-500.0,0.00031148,2]
[381459668,1756221042600,-1000.0,0.00031148,2]
[381459669,1756221042610,-503.26191234,0.00031148,5]
[381459670,1756221042619,-160.0,0.00031156,2]
[381459671,1756221042630,-800.0,0.00031166,2]
[381459672,1756221042640,-500.0,0.00031173,5]
[381459673,1756221042649,-500.0,0.00031173,5]
[381459674,1756221042658,-500.0,0.00031173,5]
[381459675,1756221042668,-559.99372576,0.00031173,5]
[381459676,1756221042678,-511.00425077,0.00031173,5]
[381459677,1756221042690,-500.0,0.00031173,5]
[381459678,1756221042700,-500.0,0.00031173,5]
[381459679,1756221042710,-502.91664097,0.00031173,5]
[381459680,1756221042719,-500.0,0.00031173,5]
[381459681,1756221042729,-500.0,0.00031173,5]
[381459682,1756221042739,-500.0,0.00031173,5]
[381459683,1756221042748,-500.0,0.00031173,5]
[381459684,1756221042758,-501.4935268,0.00031173,5]
[381459685,1756221042768,-173.99268608,0.00031173,5]
[381459686,1756221042777,-154.82107977,0.00031173,5]
[381459687,1756221042787,-500.0,0.00031173,5]
[381459688,1756221042797,-500.0,0.00031173,5]
[381459689,1756221042806,-446.29060795,0.00031173,5]
[381459690,1756221042816,-574.80092958,0.00031173,5]
[381459691,1756221042825,-522.7877542,0.00031173,5]
[381459692,1756221042835,-500.57010825,0.00031173,5]
[381459693,1756221042844,-500.0,0.00031173,5]
[381459694,1756221042854,-500.0,0.00031173,5]
[381459695,1756221042864,-500.0,0.00031173,5]
[381459696,1756221042873,-500.0,0.00031173,5]
[381459697,1756221042883,-500.0,0.00031173,5]
[381459698,1756221042893,-800.0,0.00031185,2]
[381459699,1756221042902,-10181.6497183,0.0003119,2]
[381459700,1756221042911,-2337.42800047,0.00031191,2]
[381459701,1756221042920,-20363.2994366,0.00031196,2]
[381459702,1756221042931,-5879.41,0.000312,7]
[381459703,1756221042941,-151.0,0.000312,12]
[381459704,1756221042950,-151.0,0.000312,10]
[381459705,1756221042959,-151.0,0.000312,13]
[381459706,1756221042969,-151.0,0.000312,10]
[381459707,1756221042979,-20899.43,0.000312,2]
[381459708,1756221042988,-151.0,0.000312,7]
[381459709,1756221042997,-151.0,0.000312,7]
[381459711,1756221043007,-151.0,0.000312,7]
[381459712,1756221043016,-151.0,0.000312,7]
[381459713,1756221043025,-194.519437,0.000312,7]
[381459714,1756221043035,-151.0,0.000312,7]
[381459715,1756221043044,-153.157062,0.000312,7]
[381459716,1756221043053,-151.924413,0.000312,7]
[381459717,1756221043063,-151.0,0.000312,7]
[381459718,1756221043073,-151.0,0.000312,7]
[381459719,1756221043083,-845.07960918,0.000312,7]
[381459720,1756221043093,-800.0,0.00031201,2]
[381459721,1756221043103,-151.594813,0.00031206,7]
[381459722,1756221043114,-151.611321,0.00031206,7]
[381459723,1756221043124,-151.0,0.00031206,7]
[381459724,1756221043134,-151.0,0.00031206,7]
[381459725,1756221043144,-151.0,0.00031206,7]
[381459726,1756221043154,-151.0,0.00031206,7]
[381459727,1756221043167,-151.0,0.00031206,7]
[381459728,1756221043177,-217.093733,0.00031206,7]
[381459729,1756221043189,-151.0,0.00031206,7]
[381459730,1756221043199,-151.0,0.00031206,7]
[381459732,1756221043208,-151.0,0.00031206,7]
[381459733,1756221043217,-151.0,0.00031206,7]
[381459735,1756221043227,-289.391831,0.00031206,7]
[381459737,1756221043238,-151.0,0.00031206,7]
[381459739,1756221043248,-151.820208,0.00031206,7]
[381459741,1756221043258,-151.0,0.00031206,7]
[381459743,1756221043267,-151.0,0.00031206,7]
[381459745,1756221043276,-151.0,0.00031206,7]
[381459747,1756221043286,-151.0,0.00031206,7]
[381459748,1756221043296,-151.0,0.00031206,7]
[381459750,1756221043305,-151.0,0.00031206,7]
[381459751,1756221043315,-151.0,0.00031206,7]
[381459752,1756221043325,-151.0,0.00031206,7]
[381459753,1756221043334,-151.0,0.00031206,7]
[381459754,1756221043343,-151.663043,0.00031206,7]
[381459755,1756221043353,-155.871973,0.00031206,7]
[381459757,1756221043362,-155.871973,0.00031206,7]
[381459758,1756221043371,-155.871973,0.00031206,7]
[381459759,1756221043380,-155.871973,0.00031206,7]
[381459760,1756221043390,-154.122369,0.00031206,7]
[381459761,1756221043400,-151.0,0.00031206,7]
[381459762,1756221043409,-151.0,0.00031206,7]
[381459763,1756221043419,-151.0,0.00031206,7]
[381459764,1756221043432,-151.0,0.00031206,7]
[381459765,1756221043442,-151.0,0.00031206,7]
[381459766,1756221043451,-151.0,0.00031206,7]
[381459767,1756221043460,-151.0,0.00031206,7]
[381459768,1756221043469,-151.0,0.00031206,7]
[381459769,1756221043479,-151.0,0.00031206,7]
[381459770,1756221043488,-151.0,0.00031206,7]
[381459771,1756221043498,-151.0,0.00031206,7]
[381459772,1756221043508,-151.0,0.00031206,7]
[381459773,1756221043518,-151.0,0.00031206,7]
[381459775,1756221043528,-151.0,0.00031206,7]
[381459777,1756221043538,-151.0,0.00031206,7]
[381459779,1756221043548,-151.0,0.00031206,7]
[381459781,1756221043557,-155.832772,0.00031206,7]
[381459783,1756221043566,-151.0,0.00031206,7]
[381459785,1756221043576,-151.0,0.00031206,7]
[381459786,1756221043586,-151.0,0.00031206,7]
[381459787,1756221043596,-151.0,0.00031206,7]
[381459788,1756221043606,-151.0,0.00031206,7]